bitfinex-derivatives/quotes_BTCF0:USTF0_20250907
["timestamp","ask_amount","ask_price","bid_price","bid_amount"]
[1757258363271,0.001,111380.0,111370.0,0.41560194]
[1757258365576,0.001,111380.0,111370.0,0.52778392]
[1757258367578,0.001,111380.0,111370.0,0.41560194]
[1757258369177,0.001,111380.0,111370.0,0.40254441]
[1757258369979,0.0238,111380.0,111370.0,0.40254441]
[1757258370681,0.0238,111380.0,111370.0,0.51471612]
[1757258370974,0.001,111380.0,111370.0,0.51471612]
[1757258373581,0.0238,111380.0,111370.0,0.51471612]
[1757258374185,0.001,111380.0,111370.0,0.51471612]
[1757258375982,0.001,111380.0,111370.0,0.40254441]
[1757258379885,0.02374,111380.0,111370.0,0.40254441]
[1757258380085,0.02374,111380.0,111370.0,1.21546441]
[1757258380885,0.02374,111380.0,111370.0,1.37630485]
[1757258381085,0.02374,111380.0,111370.0,0.47360215]
[1757258381285,0.02374,111380.0,111370.0,1.28652215]
[1757258383284,0.001,111380.0,111370.0,1.37630495]
[1757258383991,0.001,111380.0,111370.0,1.21546451]
[1757258384387,0.001,111380.0,111370.0,1.41268442]
[1757258384691,0.001,111380.0,111370.0,1.57352486]
[1757258384891,0.001,111380.0,111370.0,1.48374206]
[1757258385191,0.001,111380.0,111370.0,1.57352486]
[1757258385391,0.00015698,111380.0,111370.0,1.57352486]
[1757258385798,0.00015698,111380.0,111370.0,1.57348486]
[1757258388100,0.00015698,111380.0,111370.0,1.41264442]
[1757258388396,0.01376698,111380.0,111370.0,1.41264442]
[1757258389499,0.01376698,111380.0,111370.0,1.32286162]
[1757258391796,0.00324099,111380.0,111370.0,1.32286162]
[1757258392793,0.00324099,111380.0,111370.0,1.53325798]
[1757258393505,0.02274,111380.0,111370.0,1.13823716]
[1757258393796,0.00241549,111390.0,111370.0,1.13823716]
[1757258393998,0.32241549,111390.0,111370.0,1.13823716]
[1757258394397,0.02274,111380.0,111370.0,1.13823716]
[1757258394598,0.02274,111380.0,111370.0,1.53325798]
[1757258394796,0.23386041,111380.0,111370.0,0.23054636]
[1757258395000,0.57386041,111380.0,111370.0,1.34217324]
[1757258395203,0.57386041,111380.0,111370.0,1.13177688]
[1757258395706,0.57386041,111380.0,111370.0,0.97062041]
[1757258395896,0.37635,111380.0,111370.0,0.97062041]
[1757258396396,0.37635,111380.0,111370.0,0.97162041]
[1757258400202,0.37635,111380.0,111370.0,0.21866041]
[1757258400404,0.37635,111380.0,111370.0,1.03206041]
[1757258401102,0.37635,111380.0,111370.0,0.21866041]
[1757258401306,0.37635,111380.0,111370.0,1.03250041]
[1757258401493,0.37635,111380.0,111370.0,0.83499]
[1757258401698,0.37635,111380.0,111370.0,1.03250041]
[1757258402202,0.57386041,111380.0,111370.0,1.03250041]
[1757258402404,0.40407976,111380.0,111370.0,1.04621041]
[1757258402607,0.42646976,111380.0,111370.0,0.8487]
[1757258402801,0.21990041,111380.0,111370.0,1.04621041]
[1757258403105,0.02239,111380.0,111370.0,1.04621041]
[1757258404305,0.29239,111380.0,111370.0,1.04621041]
[1757258404602,0.30552,111380.0,111370.0,0.03486]
[1757258404806,0.95054082,111380.0,111370.0,0.8148]
[1757258405008,0.95054082,111380.0,111370.0,1.03467041]
[1757258405009,0.75303041,111380.0,111370.0,1.03467041]
[1757258407002,0.95054082,111380.0,111370.0,0.11371839]
[1757258407407,0.95054082,111380.0,111370.0,0.001]
[1757258408509,0.50303041,111380.0,111370.0,0.22087041]
[1757258409111,0.70054082,111380.0,111370.0,0.22087041]
[1757258409308,0.70054082,111380.0,111370.0,0.02336]
[1757258409608,0.70054082,111380.0,111370.0,0.001]
[1757258410010,0.70054082,111380.0,111370.0,0.08145191]
[1757258410408,0.70054082,111380.0,111370.0,0.001]
[1757258411609,0.95054082,111380.0,111370.0,0.001]
[1757258411913,0.03552,111370.0,111360.0,0.08058675]
[1757258412114,0.63414765,111370.0,111360.0,0.08058675]
[1757258412413,0.63414765,111370.0,111360.0,0.00013484]
[1757258413207,0.63414765,111370.0,111360.0,0.16214243]
[1757258413414,0.63414765,111370.0,111360.0,0.16414243]
[1757258415114,0.43663724,111370.0,111360.0,0.16414243]
[1757258415414,0.63414765,111370.0,111360.0,0.16414243]
[1757258415614,0.88414765,111370.0,111360.0,0.16414243]
[1757258416213,0.88414765,111370.0,111360.0,0.00313484]
[1757258416614,1.69802765,111370.0,111360.0,0.00313484]
[1757258419215,1.69802765,111370.0,111360.0,0.00213484]
[1757258419616,1.69802765,111370.0,111360.0,0.00013484]
[1757258419910,1.89553806,111370.0,111360.0,0.00013484]
[1757258420309,1.08165806,111370.0,111360.0,0.00013484]
[1757258420603,0.88414765,111370.0,111360.0,0.00013484]
[1757258420810,1.69806765,111370.0,111360.0,0.00013484]
[1757258422417,1.89557806,111370.0,111360.0,0.00013484]
[1757258423113,1.69806765,111370.0,111360.0,0.00013484]
[1757258423503,1.89557806,111370.0,111360.0,0.00013484]
[1757258425219,1.69806765,111370.0,111360.0,0.00013484]
[1757258425419,0.88414765,111370.0,111360.0,0.00013484]
[1757258425612,1.69790765,111370.0,111360.0,0.00013484]
[1757258427117,1.89541806,111370.0,111360.0,0.00013484]
[1757258429615,1.08165806,111370.0,111360.0,0.1127886]
[1757258429917,1.69770765,111370.0,111360.0,0.1351486]
[1757258430117,1.69770765,111370.0,111360.0,0.02249484]
[1757258430519,1.69770765,111370.0,111360.0,0.00013484]
[1757258430719,0.88414765,111370.0,111360.0,0.00013484]
[1757258430921,1.69774765,111370.0,111360.0,0.00013484]
[1757258431420,1.50023724,111370.0,111360.0,0.00013484]
[1757258431718,1.69766765,111370.0,111360.0,0.22000525]
[1757258432020,1.69762765,111370.0,111360.0,0.22000525]
[1757258432523,1.69762765,111370.0,111360.0,0.02249484]
[1757258432927,1.69762765,111370.0,111360.0,0.00013484]
[1757258436022,1.69778765,111370.0,111360.0,0.00013484]
[1757258438225,1.50027724,111370.0,111360.0,0.00013484]
[1757258438427,1.69778765,111370.0,111360.0,0.00013484]
[1757258439326,1.44778765,111370.0,111360.0,0.00013484]
[1757258444333,1.44792261,111370.0,111360.0,0.00013484]
[1757258446034,1.44792261,111370.0,111360.0,0.16114243]
[1757258449437,1.44792261,111370.0,111360.0,0.18444243]
[1757258449637,0.63428261,111370.0,111360.0,0.29738057]
[1757258449840,1.44752261,111370.0,111360.0,0.29738057]
[1757258450038,1.44752261,111370.0,111360.0,0.13637298]
[1757258457042,0.63428261,111370.0,111360.0,0.13637298]
[1757258457438,1.44752261,111370.0,111360.0,0.13637298]
[1757258457636,0.63428261,111370.0,111360.0,0.13637298]
[1757258457842,0.63428261,111370.0,111360.0,0.02343484]
[1757258458146,1.44824261,111370.0,111360.0,0.18444243]
[1757258458747,0.63428261,111370.0,111360.0,0.18444243]
[1757258459141,1.44820261,111370.0,111360.0,0.18444243]
[1757258460447,1.44820261,111370.0,111360.0,0.16114243]
[1757258463040,1.44820261,111370.0,111360.0,0.00013484]
[1757258463955,1.44820261,111370.0,111360.0,0.11308906]
[1757258466256,1.64584798,111370.0,111360.0,0.11308906]
[1757258466457,1.69820261,111370.0,111360.0,0.10608906]
[1757258466660,1.69820261,111370.0,111360.0,0.09908906]
[1757258466850,0.01291,111350.0,111340.0,0.39347395]
[1757258467050,1.33602185,111350.0,111340.0,0.39347395]
[1757258467255,1.33602185,111350.0,111340.0,0.23246636]
[1757258467959,1.33602185,111350.0,111340.0,0.02207]
[1757258468162,1.34490018,111350.0,111340.0,0.03589]
[1757258468361,1.14725481,111350.0,111340.0,0.03589]
[1757258468657,1.14725481,111350.0,111340.0,0.03789]
[1757258471166,1.14725481,111350.0,111340.0,0.04089]
[1757258472463,1.34490018,111350.0,111340.0,0.04089]
[1757258473468,1.14725481,111350.0,111340.0,0.04089]
[1757258475069,1.00004473,111350.0,111340.0,0.04089]
[1757258475267,1.0431537,111350.0,111340.0,0.04089]
[1757258475565,1.0431537,111350.0,111340.0,0.20212684]
[1757258475770,0.84550833,111350.0,111340.0,0.20212684]
[1757258475973,1.0431537,111350.0,111340.0,0.20212684]
[1757258479968,0.84550833,111350.0,111340.0,0.20212684]
[1757258480167,1.0431537,111350.0,111340.0,0.20212684]
[1757258482870,1.1631537,111350.0,111340.0,0.20212684]
[1757258483069,0.99331338,111350.0,111340.0,0.20212684]
[1757258484371,1.06508706,111350.0,111340.0,0.16623684]
[1757258484767,1.06508706,111350.0,111340.0,0.18830684]
[1757258484968,0.99331338,111350.0,111340.0,0.18830684]
[1757258486774,0.99331338,111350.0,111340.0,0.20212684]
[1757258487476,0.34929517,111350.0,111340.0,0.20212684]
[1757258487677,1.16293517,111350.0,111340.0,0.20212684]
[1757258488878,0.1516498,111350.0,111340.0,0.20212684]
[1757258489077,1.16293517,111350.0,111340.0,0.20212684]
[1757258489377,0.9652898,111350.0,111340.0,0.20212684]
[1757258489577,1.23625323,111350.0,111340.0,0.20212684]
[1757258493478,1.23629323,111350.0,111340.0,0.20212684]
[1757258493974,0.19331806,111350.0,111340.0,0.20212684]
[1757258494180,0.14311,111350.0,111340.0,0.39977221]
[1757258494867,0.14311,111350.0,111340.0,0.23853537]
[1757258500475,0.14311,111350.0,111340.0,0.39977221]
[1757258501980,0.14311,111350.0,111340.0,0.23853537]
[1757258502382,0.14311,111350.0,111340.0,0.04089]
[1757258502576,0.14311,111350.0,111340.0,0.23853537]
[1757258503180,0.14311,111350.0,111340.0,0.04089]
[1757258503480,0.14311,111350.0,111340.0,0.23853537]
[1757258503780,0.14311,111350.0,111340.0,0.39975376]
[1757258506483,0.14311,111350.0,111340.0,0.59742471]
[1757258511085,0.14311,111350.0,111340.0,0.20210839]
[1757258511385,0.14311,111350.0,111340.0,0.59742471]
[1757258513486,0.14311,111350.0,111340.0,0.43620632]
[1757258515290,0.14311,111350.0,111340.0,0.04089]
[1757258515493,0.14311,111350.0,111340.0,0.43620632]
[1757258518989,0.14311,111350.0,111340.0,0.04089]
[1757258519194,0.34076816,111350.0,111340.0,0.04089]
[1757258519394,0.34076816,111350.0,111340.0,0.23854816]
[1757258523097,0.34076816,111350.0,111340.0,0.04089]
[1757258523399,0.34076816,111350.0,111340.0,0.23854816]
[1757258524899,0.34076816,111350.0,111340.0,0.04089]
[1757258525097,0.34076816,111350.0,111340.0,0.23854816]
[1757258526599,0.14311,111350.0,111340.0,0.23854816]
[1757258526800,0.34076816,111350.0,111340.0,0.23854816]
[1757258536016,0.14311,111350.0,111340.0,0.23854816]
[1757258536214,0.34076816,111350.0,111340.0,0.23854816]
[1757258538316,0.58076816,111350.0,111340.0,0.23854816]
[1757258557434,0.38311,111350.0,111340.0,0.23854816]
[1757258557635,0.58076816,111350.0,111340.0,0.23854816]
[1757258558536,0.58076816,111350.0,111340.0,0.04089]
[1757258558731,0.58076816,111350.0,111340.0,0.23854816]
[1757258558932,0.40076816,111350.0,111340.0,0.23854816]
[1757258561336,0.40076816,111350.0,111340.0,0.04089]
[1757258561730,0.40076816,111350.0,111340.0,0.23854816]
[1757258564539,0.22076816,111350.0,111340.0,0.23854816]
[1757258564740,0.55076816,111350.0,111340.0,0.23854816]
[1757258566340,0.35311,111350.0,111340.0,0.04089]
[1757258567144,0.55079764,111350.0,111340.0,0.04089]
[1757258572447,0.55079764,111350.0,111340.0,0.15387797]
[1757258579452,0.35311,111350.0,111340.0,0.15387797]
[1757258580648,0.35311,111350.0,111340.0,0.35156561]
[1757258582546,0.35311,111350.0,111340.0,0.23857764]
[1757258582947,0.35311,111350.0,111340.0,0.39998902]
[1757258583754,0.35311,111350.0,111340.0,0.23857764]
[1757258588356,0.35311,111350.0,111340.0,0.04089]
[1757258592558,0.02311,111350.0,111340.0,0.04089]
[1757258592759,0.14311,111350.0,111340.0,0.04089]
[1757258594050,0.14311,111350.0,111340.0,0.23857764]
[1757258596661,0.14311,111350.0,111340.0,0.04089]
[1757258597664,0.14311,111350.0,111340.0,0.23857764]
[1757258599460,0.14311,111350.0,111340.0,0.39999198]
[1757258600263,0.14311,111350.0,111340.0,0.23857764]
[1757258600861,0.14311,111350.0,111340.0,0.04089]
[1757258601063,0.14311,111350.0,111340.0,0.23857764]
[1757258605366,0.14311,111350.0,111340.0,0.04089]
[1757258605565,0.14311,111350.0,111340.0,0.23857764]
[1757258608167,0.14311,111350.0,111340.0,0.448974]
[1757258626378,0.34078238,111350.0,111340.0,0.23856238]
[1757258626776,0.14311,111350.0,111340.0,0.23856238]
[1757258626978,0.34078238,111350.0,111340.0,0.23856238]
[1757258628780,0.34078238,111350.0,111340.0,0.44895874]
[1757258632482,0.34078238,111350.0,111340.0,0.23856238]
[1757258636081,0.34078238,111350.0,111340.0,0.44895874]
[1757258638475,0.34078238,111350.0,111340.0,0.23856238]
[1757258643286,0.34078238,111350.0,111340.0,0.44895874]
[1757258643689,0.34078238,111350.0,111340.0,0.25128636]
[1757258643887,0.34078238,111350.0,111340.0,0.44895874]
[1757258649696,0.34078238,111350.0,111340.0,0.25128636]
[1757258649899,0.34078238,111350.0,111340.0,0.44895874]
[1757258652101,0.14311,111350.0,111340.0,0.44895874]
[1757258652400,0.34078238,111350.0,111340.0,0.44895874]
[1757258654300,0.34078238,111350.0,111340.0,0.23856238]
[1757258657403,0.34078238,111350.0,111340.0,0.04089]
[1757258657600,0.34078238,111350.0,111340.0,0.23856238]
[1757258657797,0.34078238,111350.0,111340.0,0.04089]
[1757258658102,0.34078238,111350.0,111340.0,0.23856238]
[1757258659202,0.34078238,111350.0,111340.0,0.44895874]
[1757258662705,0.34078238,111350.0,111340.0,0.25128636]
[1757258662906,0.34078238,111350.0,111340.0,0.44895874]
[1757258667706,0.34078238,111350.0,111340.0,0.23856238]
[1757258667911,0.34078238,111350.0,111340.0,0.23756238]
[1757258668412,0.34078238,111350.0,111340.0,0.23556238]
[1757258668607,0.34078238,111350.0,111340.0,0.23656238]
[1757258671116,0.34078238,111350.0,111340.0,0.03889]
[1757258671314,0.34078238,111350.0,111340.0,0.23656238]
[1757258673714,0.34078238,111350.0,111340.0,0.44695874]
[1757258675518,0.14311,111350.0,111340.0,0.44695874]
[1757258675714,0.34078238,111350.0,111340.0,0.44695874]
[1757258684515,0.14311,111350.0,111340.0,0.44695874]
[1757258684722,0.34078238,111350.0,111340.0,0.44695874]
[1757258684912,0.34078238,111350.0,111340.0,0.24928636]
[1757258685216,0.34078238,111350.0,111340.0,0.44695874]
[1757258688421,0.14311,111350.0,111340.0,0.24928636]
[1757258694227,0.14311,111350.0,111340.0,0.03889]
[1757258697932,0.14311,111350.0,111340.0,0.24928636]
[1757258702633,0.14311,111350.0,111340.0,0.44696983]
[1757258703524,0.14311,111350.0,111340.0,0.69696983]
[1757258703525,0.12,111350.0,111340.0,0.69696983]
[1757258703728,0.0948693,111350.0,111340.0,1.60113803]
[1757258703925,0.00023484,111360.0,111350.0,0.01299]
[1757258704138,0.30013484,111360.0,111350.0,0.46179238]
[1757258704634,0.13032704,111360.0,111350.0,0.46179238]
[1757258704830,0.0001,111370.0,111350.0,0.71179238]
[1757258705029,0.3101,111370.0,111360.0,0.23386347]
[1757258705229,0.31,111370.0,111360.0,0.23386347]
[1757258706228,0.31,111370.0,111360.0,0.23586347]
[1757258706628,0.31,111370.0,111360.0,0.68354694]
[1757258706830,0.04,111370.0,111360.0,1.58769894]
[1757258707026,0.02064155,111380.0,111370.0,0.01299]
[1757258707231,0.35054155,111380.0,111370.0,0.3947947]
[1757258707733,0.35054155,111380.0,111370.0,0.60455185]
[1757258707932,0.35054155,111380.0,111370.0,0.44362062]
[1757258708833,0.35054155,111380.0,111370.0,0.23386347]
[1757258711338,0.35054155,111380.0,111370.0,0.39444998]
[1757258711837,0.35054155,111380.0,111370.0,1.20868998]
[1757258712534,0.37292155,111380.0,111370.0,0.39444998]
[1757258712737,0.37292155,111380.0,111370.0,1.20864998]
[1757258713438,0.35054155,111380.0,111370.0,1.20864998]
[1757258713838,0.35054155,111380.0,111370.0,1.28135878]
[1757258717043,0.37292155,111380.0,111370.0,0.46715878]
[1757258717235,0.37292155,111380.0,111370.0,1.28131878]
[1757258718136,0.37292155,111380.0,111370.0,1.08363531]
[1757258718443,0.37292155,111380.0,111370.0,1.28131878]
[1757258719444,0.37292155,111380.0,111370.0,1.12073227]
[1757258720340,0.37292155,111380.0,111370.0,1.12069227]
[1757258725453,0.35054155,111380.0,111370.0,1.12069227]
[1757258726858,0.33,111380.0,111370.0,1.12069227]
[1757258727059,0.33,111380.0,111370.0,1.13864852]
[1757258727356,0.33,111380.0,111370.0,0.32452852]
[1757258727556,0.33,111380.0,111370.0,1.13856852]
[1757258732265,0.33,111380.0,111370.0,1.29915503]
[1757258734663,0.33,111380.0,111370.0,1.13856852]
[1757258736768,0.33,111380.0,111370.0,1.34832567]
[1757258739270,0.31947363,111380.0,111370.0,1.34832567]
[1757258743077,0.34157363,111380.0,111370.0,1.34824567]
[1757258743576,0.31947363,111380.0,111370.0,1.34824567]
[1757258750277,0.31947363,111380.0,111370.0,1.34809918]
[1757258750481,0.31947363,111380.0,111370.0,1.34909918]
[1757258750783,0.31947363,111380.0,111370.0,1.35009918]
[1757258754283,0.31947363,111380.0,111370.0,0.53613918]
[1757258754284,0.34157363,111380.0,111370.0,0.53613918]
[1757258754484,0.34157363,111380.0,111370.0,1.35005918]
[1757258756480,0.34157363,111380.0,111370.0,1.35001918]
[1757258760586,0.34157363,111380.0,111370.0,0.53613918]
[1757258760779,0.34157363,111380.0,111370.0,1.1524822]
[1757258760975,0.34157363,111380.0,111370.0,1.35001918]
[1757258761180,0.53911061,111380.0,111370.0,0.2658934]
[1757258761387,1.0078158,111380.0,111370.0,1.06177715]
[1757258761786,1.0078158,111380.0,111370.0,1.25931413]
[1757258762089,1.0078158,111380.0,111370.0,1.21086648]
[1757258762380,0.81027882,111380.0,111370.0,1.0133295]
[1757258765190,0.81027882,111380.0,111370.0,1.0133295]
[1757258765487,0.81027882,111380.0,111370.0,1.21086648]
[1757258765680,0.81027882,111380.0,111370.0,1.0133295]
[1757258765881,0.81027882,111380.0,111370.0,1.21086648]
[1757258766290,0.81027882,111380.0,111370.0,1.0133295]
[1757258766488,0.81027882,111380.0,111370.0,1.21086648]
[1757258768084,0.81027882,111380.0,111370.0,1.0133295]
[1757258768288,0.81027882,111380.0,111370.0,1.21086648]
[1757258768689,0.81027882,111380.0,111370.0,1.04955698]
[1757258769097,1.0078158,111380.0,111370.0,0.85206]
[1757258769291,1.0078158,111380.0,111370.0,1.04959698]
[1757258770292,1.0078158,111380.0,111370.0,1.21081882]
[1757258772691,1.0078158,111380.0,111370.0,1.04959698]
[1757258773992,0.81027882,111380.0,111370.0,1.04959698]
[1757258774292,1.0078158,111380.0,111370.0,1.04959698]
[1757258774890,0.61274184,111380.0,111370.0,1.04959698]
[1757258775090,0.81027882,111380.0,111370.0,1.04959698]
[1757258776494,1.0078158,111380.0,111370.0,1.04959698]
[1757258777292,0.61274184,111380.0,111370.0,1.04959698]
[1757258777498,1.0078158,111380.0,111370.0,1.01328184]
[1757258778198,0.81027882,111380.0,111370.0,1.01328184]
[1757258780195,0.81027882,111380.0,111370.0,0.19940184]
[1757258780391,1.0078158,111380.0,111370.0,0.3122488]
[1757258780700,1.0078158,111380.0,111370.0,0.15102696]
[1757258781299,1.8216958,111380.0,111370.0,0.15102696]
[1757258787307,1.42662184,111380.0,111370.0,0.15102696]
[1757258787515,1.8216958,111380.0,111370.0,0.15102696]
[1757258787811,1.8216958,111380.0,111370.0,0.3122488]
[1757258788011,1.8216958,111380.0,111370.0,0.19940184]
[1757258789313,1.5716958,111380.0,111370.0,0.19940184]
[1757258790511,1.5716958,111380.0,111370.0,0.19840184]
[1757258790915,1.5716958,111380.0,111370.0,0.19740184]
[1757258794715,1.5716958,111380.0,111370.0,0.16122184]
[1757258796015,1.5716958,111380.0,111370.0,0.18427184]
[1757258796416,1.5716958,111380.0,111370.0,0.29726265]
[1757258796917,1.5716958,111380.0,111370.0,0.13604081]
[1757258798418,0.7578158,111380.0,111370.0,0.13604081]
[1757258798619,1.5716558,111380.0,111370.0,0.13604081]
[1757258800520,0.36274184,111380.0,111370.0,0.14964081]
[1757258800717,1.5716558,111380.0,111370.0,0.14964081]
[1757258804831,1.5716558,111380.0,111370.0,0.03665]
[1757258805728,1.5716558,111380.0,111370.0,0.19787184]
[1757258810332,1.374199,111380.0,111370.0,0.19787184]
[1757258819647,1.374199,111380.0,111370.0,0.16122184]
[1757258823244,1.374199,111380.0,111360.0,0.38410383]
[1757258823445,0.21896716,111370.0,111360.0,0.40715383]
[1757258823640,0.58236716,111370.0,111360.0,0.38410383]
[1757258823942,0.58236716,111370.0,111360.0,0.17434668]
[1757258824944,0.58236716,111370.0,111360.0,0.17534668]
[1757258825343,0.58236716,111370.0,111360.0,0.19866668]
[1757258825543,0.58236716,111370.0,111360.0,0.19966668]
[1757258826939,0.58236716,111370.0,111360.0,0.16335668]
[1757258833044,0.58236716,111370.0,111360.0,0.00213484]
[1757258837651,1.39608716,111370.0,111360.0,0.00213484]
[1757258838347,0.58236716,111370.0,111360.0,0.00213484]
[1757258838550,1.39608716,111370.0,111360.0,0.00213484]
[1757258839352,0.58236716,111370.0,111360.0,0.00213484]
[1757258839553,0.58236716,111370.0,111360.0,0.02545484]
[1757258839751,1.39604716,111370.0,111360.0,0.02545484]
[1757258840647,0.58236716,111370.0,111360.0,0.02445484]
[1757258840851,1.39604716,111370.0,111360.0,0.02445484]
[1757258842954,1.39604716,111370.0,111360.0,0.02345484]
[1757258848456,1.39604716,111370.0,111360.0,0.00013484]
[1757258851769,0.38475,111370.0,111360.0,0.02345484]
[1757258851973,1.39260716,111370.0,111360.0,0.02345484]
[1757258855171,1.39260716,111370.0,111360.0,0.00013484]
[1757258859572,1.39260716,111370.0,111360.0,0.16135668]
[1757258868775,1.39260716,111370.0,111360.0,0.18291668]
[1757258869081,1.19491,111370.0,111360.0,0.19567668]
[1757258869376,1.39252716,111370.0,111360.0,0.03445484]
[1757258872273,1.39255777,111370.0,111360.0,0.03445484]
[1757258876676,1.39251777,111370.0,111360.0,0.03445484]
[1757258880383,1.39251777,111370.0,111360.0,0.14757005]
[1757258881988,1.4136847,111370.0,111360.0,0.14757005]
[1757258883388,0.6001647,111370.0,111360.0,0.14757005]
[1757258883582,0.40251693,111370.0,111360.0,0.67975038]
[1757258883783,0.40251693,111370.0,111360.0,0.64332445]
[1757258883986,0.40251693,111370.0,111360.0,0.84097222]
[1757258884186,0.40251693,111370.0,111360.0,0.64332445]
[1757258884691,0.40251693,111370.0,111360.0,0.48210261]
[1757258884878,0.40251693,111370.0,111360.0,0.48310261]
[1757258886492,0.40251693,111370.0,111360.0,0.48510261]
[1757258887089,0.40251693,111370.0,111360.0,0.81275038]
[1757258887291,0.38116693,111370.0,111360.0,0.81275038]
[1757258888090,0.38116693,111370.0,111360.0,1.11229963]
[1757258888689,0.38116693,111370.0,111360.0,1.02250753]
[1757258889293,0.38116693,111370.0,111360.0,0.81275038]
[1757258891293,0.38116693,111370.0,111360.0,0.81175038]
[1757258891591,0.38116693,111370.0,111360.0,0.81375038]
[1757258898998,0.38116693,111370.0,111360.0,0.41845484]
[1757258899198,0.38116693,111370.0,111360.0,0.81375038]
[1757258903604,0.21137267,111370.0,111360.0,0.81375038]
[1757258904796,0.23401267,111370.0,111360.0,0.28845484]
[1757258905005,0.43166044,111370.0,111360.0,1.10165484]
[1757258905200,0.43166044,111370.0,111360.0,1.29930261]
[1757258909700,0.43166044,111370.0,111360.0,0.28845484]
[1757258909899,0.43166044,111370.0,111360.0,0.48610261]
[1757258910202,0.43166044,111370.0,111360.0,1.29926261]
[1757258911000,0.43166044,111370.0,111360.0,1.50901976]
[1757258911604,0.68166044,111370.0,111360.0,0.4094876]
[1757258911806,0.88586821,111370.0,111360.0,0.4094876]
[1757258912305,0.68822044,111370.0,111360.0,0.19973045]
[1757258915106,0.68166044,111370.0,111360.0,0.19973045]
[1757258916408,0.48401267,111370.0,111360.0,0.19973045]
[1757258916707,0.68166044,111370.0,111360.0,0.19973045]
[1757258919308,0.43166044,111370.0,111360.0,0.19973045]
[1757258920403,0.43166044,111370.0,111360.0,0.03845484]
[1757258921105,0.43166044,111370.0,111360.0,0.19980645]
[1757258929326,0.43166044,111370.0,111360.0,0.03845484]
[1757258931325,0.43166044,111370.0,111360.0,0.23610261]
[1757258932526,0.43166044,111370.0,111360.0,0.03845484]
[1757258932727,0.43166044,111370.0,111360.0,0.23610261]
[1757258933227,0.43166044,111370.0,111360.0,0.03845484]
[1757258933823,0.43166044,111370.0,111360.0,0.23610261]
[1757258934024,0.43166044,111370.0,111360.0,0.39745974]
[1757258934427,0.43162188,111370.0,111360.0,0.19981197]
[1757258934821,0.43162188,111370.0,111360.0,0.03845484]
[1757258941135,0.43162188,111370.0,111360.0,0.19981197]
[1757258942834,0.23401267,111370.0,111360.0,0.28845484]
[1757258943237,0.19020574,111370.0,111360.0,0.48606405]
[1757258943738,0.19020574,111370.0,111360.0,0.6958212]
[1757258944038,0.19020574,111370.0,111360.0,0.7856134]
[1757258944633,0.19020574,111370.0,111360.0,0.6958212]
[1757258949841,0.21290574,111370.0,111360.0,0.6958212]
[1757258950034,0.19020574,111370.0,111360.0,1.5087812]
[1757258953744,0.19020574,111370.0,111360.0,1.62166948]
[1757258954744,0.19020574,111370.0,111360.0,1.41191233]
[1757258961449,0.19020574,111370.0,111360.0,1.29902405]
[1757258961751,0.19020574,111370.0,111360.0,1.46029302]
[1757258962751,0.21290574,111370.0,111360.0,1.46021302]
[1757258963550,0.21290574,111370.0,111360.0,1.29894405]
[1757258965755,0.21290574,111370.0,111360.0,1.46033776]
[1757258968154,0.21290574,111370.0,111360.0,1.29894405]
[1757258968356,0.19020574,111370.0,111360.0,1.29894405]
[1757258968653,0.21290574,111370.0,111360.0,0.03845484]
[1757258968854,0.21290574,111370.0,111360.0,1.01276713]
[1757258969655,0.21290574,111370.0,111360.0,0.85133484]
[1757258970556,0.41051495,111370.0,111360.0,0.85133484]
[1757258971653,0.21290574,111370.0,111360.0,0.85133484]
[1757258972560,0.21290574,111370.0,111360.0,1.01282821]
[1757258973254,0.21290574,111370.0,111360.0,0.19994821]
[1757258973457,0.21290574,111370.0,111360.0,1.01278821]
[1757258975756,0.21290574,111370.0,111360.0,0.85129484]
[1757258975957,0.41051495,111370.0,111360.0,0.85129484]
[1757258976562,0.21290574,111370.0,111360.0,0.85129484]
[1757258979761,0.21290574,111370.0,111360.0,0.03845484]
[1757258980060,0.21290574,111370.0,111360.0,0.85125484]
[1757258980259,0.21290574,111370.0,111360.0,0.03845484]
[1757258980459,0.21290574,111370.0,111360.0,0.85125484]
[1757258982462,0.21290574,111370.0,111360.0,1.06101199]
[1757258982659,0.21290574,111370.0,111360.0,0.24821199]
[1757258982860,0.21290574,111370.0,111360.0,1.06101199]
[1757258988164,0.41051495,111370.0,111360.0,1.06101199]
[1757258990573,0.21290574,111370.0,111360.0,1.06101199]
[1757258994172,0.21290574,111370.0,111360.0,1.2586212]
[1757258994370,0.41050188,111370.0,111360.0,1.25860813]
[1757259000376,0.43105204,111370.0,111360.0,0.24821199]
[1757259000776,0.87864818,111370.0,111360.0,0.24821199]
[1757259001078,0.88520818,111370.0,111360.0,0.24821199]
[1757259001283,0.68761204,111370.0,111360.0,0.24821199]
[1757259001878,0.68761204,111370.0,111360.0,0.03845484]
[1757259002178,0.68761204,111370.0,111360.0,0.03645484]
[1757259003070,0.88520818,111370.0,111360.0,0.11518133]
[1757259003776,0.88520818,111370.0,111360.0,0.13669133]
[1757259004171,0.88520818,111370.0,111360.0,0.29822775]
[1757259004379,0.88520818,111370.0,111360.0,0.18418126]
[1757259004780,0.68105204,111370.0,111360.0,0.18318126]
[1757259004983,0.68105204,111370.0,111360.0,0.19717126]
[1757259009079,0.68105204,111370.0,111360.0,0.03563484]
[1757259011576,0.68105204,111370.0,111360.0,0.03663484]
[1757259011880,0.68105204,111370.0,111360.0,0.03763484]
[1757259015685,0.68105204,111370.0,111360.0,0.03663484]
[1757259017585,0.68105204,111370.0,111360.0,0.03563484]
[1757259017785,0.68105204,111370.0,111360.0,0.19717126]
[1757259018089,0.68105204,111370.0,111360.0,0.19817126]
[1757259018389,0.68105204,111370.0,111360.0,0.19917126]
[1757259019087,0.68105204,111370.0,111360.0,0.19717126]
[1757259021190,0.68105204,111370.0,111360.0,0.19917126]
[1757259023793,0.68105204,111370.0,111360.0,0.19817126]
[1757259024286,0.4834559,111370.0,111360.0,0.19717126]
[1757259024492,0.68105204,111370.0,111360.0,0.19717126]
[1757259025492,0.68105204,111370.0,111360.0,0.19817126]
[1757259025793,0.68105204,111370.0,111360.0,0.19917126]
[1757259027394,0.68105204,111370.0,111360.0,0.19817126]
[1757259027690,0.68105204,111370.0,111360.0,0.19717126]
[1757259028193,0.68105204,111370.0,111360.0,0.19917126]
[1757259030399,0.68105204,111370.0,111360.0,0.19817126]
[1757259030596,0.68105204,111370.0,111360.0,0.19717126]
[1757259038794,0.68105204,111370.0,111360.0,0.19917126]
[1757259039292,0.43105204,111370.0,111360.0,0.19917126]
[1757259046399,0.2334559,111370.0,111360.0,0.19917126]
[1757259046601,0.43105204,111370.0,111360.0,0.19917126]
[1757259050103,0.50467204,111370.0,111360.0,0.19917126]
[1757259054303,0.50470836,111370.0,111360.0,0.19917126]
[1757259054903,0.88470836,111370.0,111360.0,0.19917126]
[1757259060004,0.88470836,111370.0,111360.0,0.03763484]
[1757259060706,0.88470836,111370.0,111360.0,0.19917126]